fUSD/lending_fUSD_20240121
["ID","MTS","AMOUNT","RATE_DAILY","PERIOD"]
[312339722,1705798243341,-1028.736674,0.00022699,2]
[312339724,1705798243352,-3815.16596403,0.00022699,2]
[312339727,1705798243366,-325.39435214,0.00022699,2]
[312339730,1705798243389,-13615.89204299,0.00022699,2]
[312339732,1705798243400,-3194.72761637,0.00022699,2]
[312339738,1705798243450,-491.27193551,0.00022699,2]
[312339739,1705798243462,-1780.95270064,0.00022699,2]
[312339740,1705798243473,-3499.38110643,0.00022699,2]
[312339741,1705798243484,-3050.47326885,0.00022699,2]
[312339742,1705798243496,-5776.71300195,0.00022699,2]
[312339743,1705798243508,-466.35169,0.00022699,2]
[312339744,1705798243519,-253.52323246,0.00022699,2]
[312339745,1705798243546,-988.0,0.00022699,2]
[312339747,1705798243558,-301.57238638,0.00022699,2]
[312339802,1705798246273,-285.51851062,0.00022599,2]
[312339803,1705798246283,-194.44467573,0.00022699,2]
[312339804,1705798246295,-435.0,0.00022699,2]
[312339805,1705798246306,-2505.12168228,0.00022699,2]
[312339806,1705798246317,-548.2171008,0.00022699,2]
[312339826,1705798249821,-10071.47825366,0.00022699,2]
[312339827,1705798249833,-4262.79617984,0.00022699,2]
[312339828,1705798249857,-587.2050527,0.00022699,2]
[312339829,1705798249869,-630.48613493,0.00022699,2]
[312339830,1705798249888,-8279.69532402,0.00022699,2]
[312339831,1705798249904,-854.93787505,0.00022699,2]
[312339832,1705798249915,-859.39536,0.00022699,2]
[312339833,1705798249926,-457.57599352,0.00022699,2]
[312339834,1705798249954,-272.14447481,0.00022699,2]
[312339835,1705798263943,204.0,0.00019192,2]
[312339836,1705798294228,206.0,0.00019192,2]
[312339837,1705798354505,2150.1249797,0.00019192,2]
[312339838,1705798847978,538.99,0.00019542,2]
[312339839,1705799271208,549.98,0.00019342,2]
[312339848,1705799432389,-285.51851062,0.00019753,2]
[312339849,1705799432399,-199.32847921,0.00019754,2]
[312339850,1705799432409,-160.73027648,0.00019755,2]
[312339851,1705799432419,-3330.5550022,0.00019789,2]
[312339852,1705799432428,-300.0,0.00019789,2]
[312339853,1705799432437,-10098.0,0.0001979,2]
[312339854,1705799432446,-155.0,0.0002,7]
[312339855,1705799432455,-1174.89,0.00021275,2]
[312339856,1705799432464,-168.61,0.00021357,2]
[312339857,1705799432473,-5547.24,0.00021407,2]
[312339858,1705799432483,-696.09,0.00021407,2]
[312339859,1705799432492,-157.0,0.00021553,2]
[312339860,1705799432502,-168.61,0.0002157,2]
[312339861,1705799432511,-1235.51998933,0.0002157,2]
[312339862,1705799432523,-25.91001067,0.0002157,2]
[312339863,1705799432532,-159.75,0.00021591,2]
[312339864,1705799432541,-549.98,0.00021606,2]
[312339865,1705799432550,-888.91,0.00021644,2]
[312339866,1705799432560,-303.91,0.00021644,2]
[312339867,1705799432569,-150.09,0.00021719,2]
[312339868,1705799432578,-168.61,0.00021784,2]
[312339869,1705799432587,-150.0,0.00022,2]
[312339870,1705799432596,-150.49609074,0.00022,2]
[312339871,1705799432605,-204.0,0.00022021,2]
[312339872,1705799432614,-204.0,0.00022021,2]
[312339873,1705799432622,-175.73,0.00022036,2]
[312339874,1705799432631,-1154.08560184,0.00022397,3]
[312339875,1705799432640,-1000.0,0.00022397,2]
[312339876,1705799432649,-2500.0,0.00022397,2]
[312339877,1705799432658,-1143.5656,0.00022397,2]
[312339878,1705799432667,-907.76184178,0.00022417,2]
[312339879,1705799432676,-888.91,0.00022445,2]
[312339880,1705799432688,-169.34626625,0.00022471,2]
[312339881,1705799432698,-907.76184174,0.00022486,2]
[312339882,1705799432707,-289.22134146,0.00022496,2]
[312339883,1705799432716,-289.22134146,0.00022496,2]
[312339884,1705799432726,-289.22134146,0.00022496,2]
[312339885,1705799432735,-289.22134146,0.00022496,2]
[312339886,1705799432744,-289.22134146,0.00022496,2]
[312339887,1705799432753,-289.22134146,0.00022496,2]
[312339888,1705799432763,-289.22134146,0.00022496,2]
[312339889,1705799432772,-289.22134146,0.00022496,2]
[312339890,1705799432781,-289.22134146,0.00022496,2]
[312339891,1705799432790,-289.22134146,0.00022496,2]
[312339892,1705799432800,-289.22134146,0.00022496,2]
[312339893,1705799432809,-289.22134146,0.00022496,2]
[312339894,1705799432818,-289.22134146,0.00022496,2]
[312339895,1705799432827,-289.22134146,0.00022496,2]
[312339896,1705799432836,-289.22134146,0.00022496,2]
[312339897,1705799432845,-289.22134146,0.00022496,2]
[312339898,1705799432854,-289.22134146,0.00022496,2]
[312339899,1705799432864,-289.22134146,0.00022496,2]
[312339900,1705799432873,-289.22134146,0.00022496,2]
[312339902,1705799432882,-289.22134146,0.00022496,2]
[312339904,1705799432891,-289.22134146,0.00022496,2]
[312339906,1705799432900,-289.22134146,0.00022496,2]
[312339908,1705799432909,-289.22134146,0.00022496,2]
[312339910,1705799432919,-289.22134146,0.00022496,2]
[312339912,1705799432928,-289.22134146,0.00022496,2]
[312339914,1705799432938,-289.22134146,0.00022496,2]
[312339916,1705799432947,-289.22134146,0.00022496,2]
[312339919,1705799432956,-289.22134146,0.00022496,2]
[312339921,1705799432966,-289.22134146,0.00022496,2]
[312339923,1705799432975,-264.06727495,0.00022496,2]
[312339925,1705799432991,-25.15406651,0.00022496,2]
[312339927,1705799433000,-289.22134146,0.00022496,2]
[312339929,1705799433009,-289.22134146,0.00022496,2]
[312339931,1705799433019,-289.22134146,0.00022496,2]
[312339933,1705799433028,-25.004461,0.00022496,2]
[312339936,1705799433043,-264.21688046,0.00022496,2]
[312339938,1705799433052,-289.22134146,0.00022496,2]
[312339940,1705799433061,-3320.75172748,0.00022496,2]
[312339942,1705799433071,-500.0,0.00022496,2]
[312339944,1705799433085,-145561.85080345,0.00022497,2]
[312339947,1705799433106,-2584.91294335,0.00022497,2]
[312339950,1705799433118,-519.6705,0.00022497,2]
[312339952,1705799433129,-4162.30159469,0.00022497,2]
[312339954,1705799433140,-391.98484987,0.00022497,2]
[312339957,1705799433166,-528.87484806,0.00022497,2]
[312340211,1705799441161,-940.4722523,0.00022497,2]
[312340283,1705799441811,-457.86961321,0.00022497,2]
[312340480,1705799443591,-929.75169523,0.00022497,2]
[312340500,1705799446513,-443.12,0.0002173,2]
[312340501,1705799446524,-192.72286283,0.00022496,7]
[312340505,1705799447847,-63.08306694,0.00022496,7]
[312340506,1705799447857,-978.22086235,0.00022497,2]
[312340507,1705799447890,-966.16924044,0.00022497,2]
[312340508,1705799447914,-754.80492374,0.00022497,2]
[312340509,1705799447925,-444.1546217,0.00022497,2]
[312340510,1705799447938,-93218.71820138,0.00022497,2]
[312340511,1705799447947,-5440.1859,0.00022499,2]
[312340512,1705799447956,-19328.4445315,0.00022499,2]
[312340514,1705800167611,534.28,0.00019232,2]
[312340516,1705800348023,2000.0,0.00035948,30]
[312340517,1705800360033,2000.0,0.00035948,30]
[312340518,1705800364092,204.0,0.00019021,2]
[312340519,1705800367077,2000.0,0.00035948,30]
[312340520,1705800376845,2000.0,0.00035948,30]
[312340521,1705800383641,2000.0,0.00035948,30]
[312340522,1705800391337,2000.0,0.00035948,30]
[312340523,1705800423757,204.0,0.00019021,2]
[312340524,1705800484249,203.99994,0.00019021,2]
[312340528,1705800612955,1315.92,0.00035948,30]
[312340529,1705800624406,12834.26608862,0.00019021,2]
[312340550,1705800631520,-698.30648217,0.00019656,2]
[312340552,1705800631529,-160.76378948,0.00019656,2]
[312340553,1705800631538,-155.0,0.00019657,2]
[312340555,1705800631548,-7623.53452929,0.00021024,2]
[312340556,1705800631588,-2274.29547071,0.00021024,2]
[312340558,1705800631598,-185.18,0.0002107,2]
[312340560,1705800631607,-354.5,0.00021112,2]
[312340561,1705800631617,-1555.51,0.00021114,2]
[312340563,1705800631627,-175.76,0.00021317,2]
[312340565,1705800631637,-151.05,0.00021395,2]
[312340566,1705800631646,-151.05,0.0002148,2]
[312340567,1705800631655,-534.28,0.00021496,2]
[312340568,1705800631665,-645.5,0.00021539,2]
[312340569,1705800631674,-151.05,0.00021566,2]
[312340570,1705800631684,-745.06,0.00021644,2]
[312340571,1705800631694,-176.48,0.00021651,2]
[312340572,1705800631703,-151.05,0.00021651,2]
[312340573,1705800631713,-151.05,0.00021737,2]
[312340574,1705800631723,-204.0,0.00021753,5]
[312340575,1705800631732,-150.54,0.00021775,2]
[312340576,1705800631742,-48.46416922,0.00021823,2]
[312340577,1705800631761,-102.58583078,0.00021823,2]
[312340578,1705800631771,-176.48,0.00021867,2]
[312340579,1705800631780,-74.56398869,0.00022,2]
[312340580,1705800631791,-75.43601131,0.00022,2]
[312340581,1705800631801,-176.48,0.00022084,2]
[312340582,1705800631811,-1204.2683516,0.000223,2]
[312340583,1705800631841,-260.9259484,0.000223,2]
[312340584,1705800631851,-1000.0,0.00022397,2]
[312340585,1705800631861,-173846.79455163,0.000224,2]
[312340586,1705800631872,-42071.50013355,0.000224,2]
[312340587,1705800631915,-411.68315571,0.000224,2]
[312340588,1705800631927,-499.99,0.000224,2]
[312340589,1705800631939,-327.01287504,0.000224,2]
[312340590,1705800631963,-294.6387564,0.000224,2]
[312340597,1705800637877,-27548.38052767,0.000224,2]
[312340598,1705800637888,-718.70799815,0.000224,2]
[312340599,1705800637898,-1001.70027486,0.00022424,2]
[312340600,1705800637909,-832.37167351,0.00022444,2]
[312340601,1705800637919,-745.06,0.00022445,2]
[312340602,1705800637928,-718.70799815,0.00022471,2]
[312340603,1705800637938,-2189.76625576,0.00022497,2]
[312340604,1705800637948,-1703.87004803,0.00022498,2]
[312340605,1705800637958,-151.0121,0.00022498,3]
[312340606,1705800637968,-151.0121,0.00022498,3]
[312340607,1705800637978,-151.0121,0.00022498,3]
[312340608,1705800637988,-151.0121,0.00022498,3]
[312340609,1705800637997,-151.0121,0.00022498,3]
[312340611,1705800638007,-171.0121,0.00022498,3]
[312340613,1705800638018,-171.0121,0.00022498,3]
[312340615,1705800638027,-171.0121,0.00022498,3]
[312340617,1705800638037,-171.0121,0.00022498,3]
[312340619,1705800638047,-151.0121,0.00022498,3]
[312340621,1705800638057,-151.0121,0.00022498,3]
[312340623,1705800638067,-151.0121,0.00022498,3]
[312340625,1705800638077,-151.0121,0.00022498,3]
[312340627,1705800638086,-500.0,0.00022499,2]
[312340629,1705800638096,-500.0,0.000225,2]
[312340631,1705800638106,-62463.6244669,0.000225,2]
[312340860,1705800640207,-1430.18375976,0.000225,2]
[312340891,1705800640366,-1100.03978644,0.000225,2]
[312340895,1705800640378,-37822.28768629,0.000225,2]
[312340898,1705800640389,-281.30685198,0.000225,2]
[312340901,1705800640402,-4279.62601539,0.000225,2]
[312340910,1705800640437,187.60084384,0.00019021,2]
[312341094,1705800642877,-5986.94359995,0.000225,2]
[312341095,1705800642889,-104584.16943329,0.000225,2]
[312341096,1705800642899,-100000.0,0.000225,2]
[312341097,1705800642909,-190.60665139,0.000225,2]
[312341099,1705800642919,-718.70799815,0.00022543,2]
[312341101,1705800642928,-152.67814662,0.00022548,2]
[312341103,1705800642937,-258.14093779,0.00022588,2]
[312341105,1705800642947,-199.72927828,0.00022598,2]
[312341107,1705800642957,-9548.95108788,0.00022598,2]
[312341109,1705800642966,-12303.42922454,0.00022598,2]
[312341112,1705800642979,-418.79776358,0.00022599,2]
[312341114,1705800642989,-17373.8555548,0.00022599,2]
[312341116,1705800642998,-718.70799815,0.00022614,2]
[312341118,1705800643008,-800.0,0.00022617,2]
[312341120,1705800643018,-800.0,0.00022617,2]
[312341122,1705800643027,-800.0,0.00022618,2]
[312341124,1705800643037,-800.0,0.00022618,2]
[312341126,1705800643047,-200.0,0.00022618,2]
[312341128,1705800643057,-7999.99,0.00022686,3]
[312341130,1705800643066,-718.70799815,0.00022686,2]
[312341132,1705800643076,-190.60665139,0.000227,2]
[312341134,1705800643085,-718.70799815,0.00022757,2]
[312341136,1705800643095,-1555.51,0.00022757,2]
[312341138,1705800643104,-34788.650492,0.00022795,2]
[312341140,1705800643114,-2393.5207747,0.00022795,2]
[312341142,1705800643124,-4625.4804715,0.00022795,2]
[312341145,1705800643134,-2088.54586742,0.00022798,2]
[312341146,1705800643143,-150.54,0.00022799,2]
[312341147,1705800643154,-3297.48423607,0.00022799,2]
[312341148,1705800643164,-150.01,0.00022799,2]
[312341149,1705800643175,-200768.91745818,0.000228,2]
[312341150,1705800643185,-832.37167351,0.00022805,2]
[312341151,1705800643194,-500.0,0.00022811,2]
[312341152,1705800643203,-200.0,0.00022811,2]
[312341153,1705800643212,-200.0,0.00022811,2]
[312341154,1705800643222,-500.0,0.00022811,2]
[312341155,1705800643232,-200.0,0.00022812,2]
[312341156,1705800643241,-500.0,0.00022812,2]
[312341157,1705800643251,-200.0,0.00022812,2]
[312341158,1705800643261,-500.0,0.00022812,2]
[312341159,1705800643272,-500.0,0.00022812,2]
[312341160,1705800643282,-500.0,0.00022812,2]
[312341161,1705800643291,-200.0,0.00022812,2]
[312341162,1705800643301,-200.0,0.00022812,2]
[312341163,1705800643314,-200.0,0.00022812,2]
[312341164,1705800643324,-200.0,0.00022812,2]
[312341165,1705800643334,-200.0,0.00022812,2]
[312341166,1705800643343,-1798.88305209,0.00022813,2]
[312341167,1705800643353,-407.01492911,0.00022813,2]
[312341168,1705800643363,-500.0,0.00022816,2]
[312341169,1705800643372,-718.70799815,0.00022829,2]
[312341170,1705800643382,-151.27339511,0.00022884,2]
[312341171,1705800643391,-151.27339511,0.00022887,2]
[312341172,1705800643401,-151.27339511,0.0002289,2]
[312341173,1705800643410,-151.27339511,0.00022894,2]
[312341174,1705800643420,-151.27339511,0.00022897,2]
[312341175,1705800643430,-5000.0,0.000229,2]
[312341176,1705800643439,-151.27339511,0.000229,2]
[312341177,1705800643451,-160.09933416,0.000229,2]
[312341178,1705800643461,-190.60665139,0.000229,2]
[312341179,1705800643471,-718.70799815,0.000229,2]
[312341180,1705800643482,-282.7255077,0.000229,2]
[312341181,1705800643492,-333.16008761,0.000229,6]
[312341182,1705800643503,-916.0,0.00022984,2]
[312341183,1705800643515,-32661.9569817,0.00022984,2]
[312341184,1705800643526,-30535.2634715,0.00022984,2]
[312341185,1705800643535,-28408.5699612,0.00022984,2]
[312341186,1705800643546,-2250.3736571,0.00022984,2]
[312341187,1705800643558,-2107.2265395,0.00022984,2]
[312341188,1705800643568,-1964.0794219,0.00022984,2]
[312341189,1705800643580,-3759.8520274,0.00022984,2]
[312341190,1705800643591,-2894.2235832,0.00022984,2]
[312341191,1705800643602,-2028.5951391,0.00022984,2]
[312341192,1705800643612,-230.02607466,0.00022996,2]
[312341193,1705800643621,-155.45501439,0.00022997,2]
[312341194,1705800643631,-227.17305769,0.00022997,2]
[312341195,1705800643644,-161.13953141,0.00022997,2]
[312341196,1705800643654,-1061.80287077,0.00022997,2]
[312341197,1705800643663,-305.19202032,0.00022997,2]
[312341198,1705800643672,-156.10676867,0.00022997,2]
[312341199,1705800643682,-209.18068672,0.00022997,2]
[312341200,1705800643691,-252.14334929,0.00022997,2]
[312341201,1705800643701,-215.08831339,0.00022997,2]
[312341202,1705800643712,-184.06324017,0.00022997,2]
[312341203,1705800643722,-1033.37679402,0.00022997,2]
[312341204,1705800643732,-155.94507218,0.00022997,2]
[312341205,1705800643742,-171.52103224,0.00022997,2]
[312341206,1705800643752,-158.60495377,0.00022997,2]
[312341207,1705800643762,-218.22181127,0.00022997,2]
[312341208,1705800643772,-155.0,0.00022997,2]
[312341209,1705800643782,-1200.04040465,0.00022997,2]
[312341210,1705800643791,-175.83572121,0.00022997,2]
[312341211,1705800643801,-604.19506873,0.00022997,2]
[312341212,1705800643811,-217.2730541,0.00022997,2]
[312341213,1705800643820,-3854.06636017,0.00022997,2]
[312341214,1705800643830,-524.19831016,0.00022997,2]
[312341215,1705800643839,-613.87060163,0.00022997,2]
[312341216,1705800643849,-223.73748111,0.00022997,2]
[312341217,1705800643858,-511.44491061,0.00022997,2]
[312341218,1705800643868,-1828.30309614,0.00022997,2]
[312341219,1705800643877,-1133.39835307,0.00022997,2]
[312341220,1705800643887,-373.41565504,0.00022997,2]
[312341221,1705800643896,-163.88607497,0.00022997,2]
[312341222,1705800643906,-155.0,0.00022997,2]
[312341223,1705800643915,-151.0121,0.00022997,3]
[312341224,1705800643924,-151.0121,0.00022997,3]
[312341225,1705800643934,-151.0121,0.00022997,3]
[312341226,1705800643943,-151.0121,0.00022997,3]
[312341227,1705800643953,-151.0121,0.00022997,3]
[312341228,1705800643962,-151.0121,0.00022997,3]
[312341229,1705800643971,-151.0121,0.00022997,3]
[312341230,1705800643982,-151.0121,0.00022997,3]
[312341231,1705800643991,-151.0121,0.00022997,3]
[312341232,1705800644001,-151.0121,0.00022997,3]
[312341233,1705800644011,-151.0121,0.00022997,3]
[312341234,1705800644020,-151.0121,0.00022997,3]
[312341235,1705800644030,-151.0121,0.00022997,3]
[312341236,1705800644039,-151.0121,0.00022997,3]
[312341237,1705800644049,-151.0121,0.00022997,3]
[312341238,1705800644058,-151.0121,0.00022997,3]
[312341239,1705800644068,-424.99664513,0.00022997,2]
[312341240,1705800644077,-151.0121,0.00022997,3]
[312341241,1705800644086,-151.0121,0.00022997,3]
[312341242,1705800644095,-151.0121,0.00022997,3]
[312341243,1705800644105,-151.0121,0.00022997,3]
[312341244,1705800644114,-151.0121,0.00022997,3]
[312341245,1705800644123,-151.0121,0.00022997,3]
[312341246,1705800644132,-151.0121,0.00022997,3]
[312341247,1705800644142,-151.0121,0.00022997,3]
[312341248,1705800644151,-151.0121,0.00022997,3]
[312341249,1705800644160,-151.0121,0.00022997,3]
[312341250,1705800644169,-151.0121,0.00022997,3]
[312341251,1705800644179,-151.0121,0.00022997,3]
[312341252,1705800644188,-151.0121,0.00022997,3]
[312341253,1705800644197,-151.0121,0.00022997,3]
[312341254,1705800644206,-197.07475957,0.00022998,2]
[312341255,1705800644291,-675.54934891,0.00022998,2]
[312341256,1705800644303,-527.92665058,0.00022998,2]
[312341257,1705800644312,-243.91281837,0.00022998,2]
[312341258,1705800644322,-399.23698328,0.00022998,2]
[312341259,1705800644331,-483.14875248,0.00022998,2]
[312341260,1705800644340,-246.11257246,0.00022998,2]
[312341261,1705800644349,-286.12428429,0.00022998,2]
[312341262,1705800644359,-428.89149011,0.00022998,2]
[312341263,1705800644367,-961.97219207,0.00022998,2]
[312341264,1705800644377,-155.46273532,0.00022998,2]
[312341265,1705800644386,-31050.19322552,0.00022998,2]
[312341266,1705800644396,-278.43153305,0.00022998,2]
[312341267,1705800644406,-156.42508292,0.00022998,2]
[312341268,1705800644416,-155.58793985,0.00022998,2]
[312341269,1705800644426,-155.42012527,0.00022998,2]
[312341270,1705800644435,-843.50752644,0.00022998,2]
[312341271,1705800644444,-8780.24109632,0.00022998,2]
[312341272,1705800644454,-293.64407279,0.00022998,2]
[312341273,1705800644464,-187.97233759,0.00022998,2]
[312341274,1705800644475,-365.84691239,0.00022998,2]
[312341275,1705800644484,-161.52832243,0.00022998,2]
[312341276,1705800644494,-1913.64946437,0.00022998,2]
[312341277,1705800644503,-195.15582925,0.00022998,2]
[312341278,1705800644513,-943.41945735,0.00022998,2]
[312341279,1705800644521,-155.0,0.00022998,2]
[312341280,1705800644531,-1040.53163362,0.00022999,2]
[312341281,1705800644540,-150.0,0.00022999,2]
[312341282,1705800644551,-150.0,0.00022999,2]
[312341283,1705800644560,-150.0,0.00022999,2]
[312341284,1705800644571,-150.0,0.00022999,2]
[312341285,1705800644580,-150.0,0.00022999,2]
[312341286,1705800644589,-150.0,0.00022999,2]
[312341287,1705800644599,-150.0,0.00022999,2]
[312341288,1705800644608,-150.0,0.00022999,2]
[312341289,1705800644617,-150.0,0.00022999,2]
[312341290,1705800644626,-150.0,0.00022999,2]
[312341291,1705800644636,-150.0,0.00022999,2]
[312341292,1705800644645,-150.0,0.00022999,2]
[312341293,1705800644654,-1929291.30837763,0.00023,3]
[312341294,1705800644670,-75334.52757871,0.00023,3]
[312341295,1705800644679,-492635.32210479,0.00023,2]
[312341296,1705800645657,-278.26330324,0.000223,2]
[312341297,1705800645697,-565.66429676,0.000223,2]
[312341298,1705800645706,-270.94081721,0.00022811,2]
[312341299,1705800645716,-3043.84599132,0.00023,2]
[312341300,1705800645740,-163.64532512,0.000225,2]
[312341301,1705800645750,-606.78616959,0.00023,2]
[312341302,1705800647259,-163.64532512,0.000225,2]
[312341303,1705800647269,-150.8527,0.00022799,2]
[312341304,1705800647278,-176.33847114,0.00022811,2]
[312341305,1705800647287,-1257.09357466,0.00023,2]
[312341306,1705800647299,-290.92176094,0.00023,2]
[312341311,1705801621025,570.58,0.00019476,2]
[312341332,1705801831782,-205.0,0.00020485,2]
[312341333,1705801831796,-116.90484521,0.00020616,2]
[312341334,1705801831812,-562.4996314,0.00020616,2]
[312341335,1705801831840,-32.11552339,0.00020616,2]
[312341336,1705801831851,-353.22857061,0.00020854,2]
[312341337,1705801831865,-372.67142939,0.00020854,2]
[312341338,1705801831880,-715.11,0.00021267,2]
[312341339,1705801831892,-151.77679912,0.000213,2]
[312341340,1705801831903,-514.82,0.00021348,2]
[312341341,1705801831915,-1397.9,0.00021389,2]
[312341342,1705801831928,-716.4,0.000214,2]
[312341343,1705801831940,-283.6,0.00021413,2]
[312341344,1705801831952,-150.44,0.00021565,2]
[312341345,1705801831965,-862.31,0.00021644,2]
[312341346,1705801831977,-625.01,0.00021644,2]
[312341347,1705801831988,-570.58,0.0002174,2]
[312341348,1705801831998,-150.2,0.00021802,2]
[312341349,1705801832009,-300.0,0.00021888,2]
[312341350,1705801832022,-150.2,0.00021889,2]
[312341351,1705801832034,-150.2,0.00021977,2]
[312341352,1705801832045,-499.99,0.00022064,2]
[312341353,1705801832057,-150.2,0.00022064,2]
[312341354,1705801832068,-628.47591724,0.00022078,2]
[312341355,1705801832080,-717.09,0.00022124,2]
[312341356,1705801832091,-150.2,0.00022151,2]
[312341357,1705801832103,-715.22,0.00022165,2]
[312341358,1705801832115,-150.2,0.00022238,2]
[312341359,1705801832126,-403.452,0.000223,2]
[312341360,1705801832136,-45628.15472127,0.000223,2]
[312341361,1705801832160,-252.7154311,0.000223,2]
[312341363,1705801837838,-206.0,0.00020485,2]
[312341364,1705801837849,-54119.12984763,0.000223,2]
[312341365,1705801837859,-625.01,0.00022445,2]
[312341366,1705801837871,-3228.2853,0.000227,2]
[312341367,1705801837883,-200.49149625,0.0002271,2]
[312341368,1705801837894,-1349.16793539,0.0002271,2]
[312341369,1705801837904,-397.0,0.0002277,2]
[312341370,1705801837915,-178.77206168,0.0002279,2]
[312341371,1705801837925,-12305.81359646,0.00022793,2]
[312341372,1705801837936,-545.16384808,0.00022799,2]
[312341373,1705801837947,-21367.40126553,0.000228,2]
[312341374,1705801837961,-12496.5938476,0.000228,2]
[312341375,1705801838004,-1478.00002489,0.000228,2]
[312341376,1705801838065,-347.697945,0.000228,2]
[312341378,1705801838180,-2861.16401675,0.000228,2]
[312341599,1705801840294,-675.94277018,0.000228,2]
[312341601,1705801840308,-251.97835253,0.000228,2]
[312341681,1705801841068,-469.30961175,0.000228,2]
[312341684,1705801841193,-321.1046262,0.000228,2]
[312341687,1705801841207,-16831.68118127,0.000228,2]
[312341741,1705801842844,-2058.24192669,0.000228,3]
[312341742,1705801842853,-7263.26676111,0.000228,2]
[312341744,1705801842968,-305.0,0.000228,2]
[312341745,1705801843083,-443.79,0.000228,2]
[312341746,1705801843143,-30646.99594001,0.000228,2]
[312341753,1705801845838,-255.61090718,0.000228,2]
[312341754,1705801845895,-450.19234409,0.000228,2]
[312341755,1705801846121,-512.6399146,0.000228,2]
[312341756,1705801846133,-5926.72383597,0.000228,2]
[312341757,1705801846146,-848.20093419,0.000228,2]
[312341758,1705801853359,442.0,0.0003591,120]
[312341759,1705801881306,165.98816462,0.0003591,120]
[312341760,1705801925257,297.00867555,0.0003591,30]
[312341761,1705802011306,283.96615771,0.0003591,119]
[312341762,1705802021108,6207.26513527,0.0003591,120]
[312341763,1705802057214,18611.82015325,0.0003591,120]
[312341774,1705802297702,500.0,0.00035907,30]
[312341776,1705802367440,3000.0,0.00035907,30]
[312341778,1705802590930,573.79,0.00019534,2]
[312341812,1705803007222,572.4,0.00018872,2]
[312341830,1705803031918,-299.42368159,0.00019809,2]
[312341832,1705803031930,-188.93322193,0.00019809,2]
[312341833,1705803031940,-205.0,0.0001981,2]
[312341834,1705803031949,-715.73,0.00020665,2]
[312341835,1705803031958,-1486.14,0.00020795,2]
[312341836,1705803031968,-724.88,0.0002081,2]
[312341837,1705803031977,-479.31677807,0.0002081,2]
[312341838,1705803032140,-233.28322193,0.0002081,2]
[312341839,1705803032149,-240.73048124,0.0002081,2]
[312341840,1705803032161,-469.90951876,0.0002081,2]
[312341841,1705803032170,-485.44822328,0.0002081,2]
[312341842,1705803032249,-251.90177672,0.0002081,2]
[312341843,1705803032259,-717.5,0.0002081,2]
[312341844,1705803032268,-713.24,0.0002081,2]
[312341845,1705803032280,-711.31,0.0002081,2]
[312341846,1705803032289,-731.81,0.00020811,2]
[312341847,1705803032299,-717.22,0.00020812,2]
[312341848,1705803032308,-712.38,0.00020814,2]
[312341850,1705803032318,-720.46,0.00020818,2]
[312341852,1705803032327,-711.94,0.00020826,2]
[312341853,1705803032337,-734.23,0.00020835,2]
[312341854,1705803032346,-717.06,0.00020849,2]
[312341855,1705803032356,-572.4,0.00021135,2]
[312341858,1705803032376,-211.75,0.00021151,2]
[312341861,1705803032387,-250.0,0.00021152,2]
[312341863,1705803032397,-200.0,0.00021253,2]
[312341865,1705803032407,-573.12,0.00021348,2]
[312341867,1705803032418,-152.48,0.00021348,2]
[312341869,1705803032428,-23900.0,0.00021359,2]
[312341871,1705803032437,-426.88,0.0002159,2]
[312341873,1705803032447,-152.94,0.00021632,2]
[312341875,1705803032457,-510.5,0.00021644,2]
[312341877,1705803032468,-172.77,0.00021769,2]
[312341879,1705803032478,-6100.79186523,0.000218,2]
[312341882,1705803032491,-3812.70516581,0.000218,2]
[312341917,1705803037979,-269.5,0.00021674,2]
[312341920,1705803037989,-745.6999988,0.000218,2]
[312341924,1705803038218,-2917.45416209,0.000218,2]
[312342129,1705803040479,-1039.85615635,0.00021674,2]